bitfinex-derivatives/quotes_BTCF0:USTF0_20241104
["timestamp","ask_amount","ask_price","bid_price","bid_amount"]
[1730693026137,0.00817024,69134.0,69133.0,0.48100217]
[1730693026336,0.00817024,69134.0,69133.0,0.39419993]
[1730693026747,0.00817024,69134.0,69133.0,0.39378083]
[1730693026940,0.00817024,69134.0,69133.0,0.48058307]
[1730693027131,0.00817024,69134.0,69133.0,0.39378083]
[1730693027132,0.006,69134.0,69133.0,0.39378083]
[1730693027644,0.006,69134.0,69133.0,0.30059182]
[1730693030230,0.006,69134.0,69133.0,0.51796072]
[1730693030436,0.07235,69147.0,69146.0,0.09126539]
[1730693030639,0.10949342,69147.0,69146.0,0.09126539]
[1730693031142,0.10949342,69147.0,69146.0,0.16361539]
[1730693031439,0.07235,69147.0,69146.0,0.16361539]
[1730693031645,0.11449553,69147.0,69146.0,0.09226539]
[1730693031946,0.11449553,69147.0,69146.0,0.09326539]
[1730693031947,0.11549553,69147.0,69146.0,0.09326539]
[1730693034546,0.07835,69147.0,69146.0,0.09326539]
[1730693037448,0.07835,69147.0,69146.0,0.13655492]
[1730693037848,0.07835,69147.0,69146.0,0.09326539]
[1730693038356,0.07835,69147.0,69146.0,0.13655492]
[1730693039348,0.07835,69147.0,69146.0,0.09326539]
[1730693042657,0.07835,69147.0,69146.0,0.13658263]
[1730693044444,0.07835,69147.0,69146.0,0.09326539]
[1730693045254,0.07835,69147.0,69146.0,0.30021463]
[1730693045456,0.07835,69147.0,69146.0,0.25688078]
[1730693045961,0.07835,69147.0,69146.0,0.16561539]
[1730693046264,0.07835,69147.0,69146.0,0.25688078]
[1730693046568,0.07735,69147.0,69146.0,0.28958078]
[1730693046951,0.07335,69147.0,69146.0,0.34630016]
[1730693047157,0.07335,69147.0,69146.0,0.25603477]
[1730693048367,0.07335,69147.0,69146.0,0.19831539]
[1730693048759,0.07235,69147.0,69146.0,0.19731539]
[1730693048964,0.07335,69147.0,69146.0,0.19831539]
[1730693049770,0.1109127,69147.0,69146.0,0.19831539]
[1730693051368,0.15451547,69147.0,69146.0,0.19831539]
[1730693053965,0.15454613,69147.0,69146.0,0.19831539]
[1730693056760,0.20423853,69147.0,69146.0,0.19831539]
[1730693057568,0.15454613,69147.0,69146.0,0.19831539]
[1730693057769,0.07335,69147.0,69146.0,0.19831539]
[1730693058168,0.07335,69147.0,69146.0,0.27046462]
[1730693058471,0.07335,69147.0,69146.0,0.19831539]
[1730693058666,0.07335,69147.0,69146.0,0.27046462]
[1730693059263,0.07335,69147.0,69146.0,0.36173001]
[1730693059663,0.07335,69147.0,69146.0,0.28958078]
[1730693061865,0.07335,69147.0,69146.0,0.19831539]
[1730693062267,0.07335,69147.0,69146.0,0.09326539]
[1730693063574,0.07335,69147.0,69146.0,0.15113306]
[1730693063770,0.07335,69147.0,69146.0,0.09326539]
[1730693067180,0.07335,69147.0,69146.0,0.15113544]
[1730693068076,0.07335,69147.0,69146.0,0.25688078]
[1730693068077,0.001,69147.0,69146.0,0.25688078]
[1730693068269,0.001,69147.0,69146.0,0.4220644]
[1730693068469,0.001,69147.0,69146.0,0.34987088]
[1730693072676,0.03884889,69147.0,69146.0,0.25688078]
[1730693077176,0.001,69147.0,69146.0,0.25688078]
[1730693078377,0.072338,69158.0,69146.0,0.35800078]
[1730693078681,0.072338,69158.0,69155.0,0.07234]
[1730693078682,0.04427981,69157.0,69155.0,0.07234]
[1730693078885,0.04427981,69156.0,69155.0,0.07234]
[1730693079389,0.04427981,69156.0,69155.0,0.25487078]
[1730693079780,0.001,69158.0,69157.0,0.072339]
[1730693080078,0.001,69158.0,69157.0,0.16360439]
[1730693081086,0.001,69158.0,69157.0,0.25486978]
[1730693081280,0.072336,69160.0,69159.0,0.072336]
[1730693081586,0.072336,69160.0,69159.0,0.433136]
[1730693081779,0.072336,69160.0,69159.0,0.52440139]
[1730693082085,0.072336,69160.0,69159.0,0.433136]
[1730693082281,0.072336,69160.0,69159.0,0.52440139]
[1730693082487,0.072336,69160.0,69159.0,0.434136]
[1730693082879,0.072336,69160.0,69159.0,0.435136]
[1730693084190,0.072336,69160.0,69159.0,0.49289579]
[1730693085985,0.072336,69160.0,69159.0,0.53611681]
[1730693087186,0.072336,69160.0,69159.0,0.47835702]
[1730693087581,0.072336,69160.0,69159.0,0.53611681]
[1730693087787,0.072336,69160.0,69159.0,0.47835702]
[1730693088484,0.00216927,69163.0,69159.0,0.56962241]
[1730693088689,0.13346952,69162.0,69161.0,0.072334]
[1730693089298,0.14420443,69165.0,69159.0,0.40678102]
[1730693089495,0.17510443,69171.0,69166.0,0.072329]
[1730693089793,0.24742843,69171.0,69170.0,0.45206539]
[1730693089995,0.17204143,69171.0,69163.0,0.09126539]
[1730693090192,0.072331,69164.0,69163.0,0.09126539]
[1730693090392,0.12220704,69164.0,69163.0,0.09126539]
[1730693091496,0.12220704,69164.0,69163.0,0.09226539]
[1730693092398,0.12220704,69164.0,69163.0,0.09326539]
[1730693092698,0.04987604,69164.0,69163.0,0.002]
[1730693092898,0.41441448,69164.0,69163.0,0.00099086]
[1730693093093,0.47256114,69164.0,69159.0,0.072336]
[1730693093290,0.1079595,69163.0,69159.0,0.072336]
[1730693093491,0.15862488,69161.0,69157.0,0.09126539]
[1730693093796,0.15862488,69159.0,69155.0,0.00216901]
[1730693093993,0.49438256,69164.0,69155.0,0.00216901]
[1730693093994,0.16360539,69156.0,69155.0,0.00216901]
[1730693094301,0.27156489,69156.0,69155.0,0.00216901]
[1730693094501,0.33316489,69156.0,69155.0,0.00216901]
[1730693094801,0.38376299,69156.0,69155.0,0.07451001]
[1730693095100,0.22520539,69156.0,69155.0,0.07451001]
[1730693095600,0.22620539,69156.0,69155.0,0.07451001]
[1730693097903,0.13494,69156.0,69155.0,0.07451001]
[1730693099500,0.22620539,69156.0,69155.0,0.07451001]
[1730693100097,0.22620539,69156.0,69155.0,0.00216901]
[1730693100606,0.26893186,69156.0,69155.0,0.00216901]
[1730693101613,0.26893186,69156.0,69149.0,0.3608]
[1730693101614,0.19659186,69156.0,69149.0,0.3608]
[1730693101909,0.072346,69151.0,69150.0,0.072345]
[1730693102299,0.072349,69148.0,69147.0,0.072348]
[1730693102808,0.15086262,69148.0,69147.0,0.072348]
[1730693103707,0.15086262,69148.0,69147.0,0.085348]
[1730693104510,0.11451042,69148.0,69147.0,0.085348]
[1730693104707,0.1508237,69148.0,69147.0,0.098348]
[1730693105599,0.10866228,69148.0,69147.0,0.098348]
[1730693106110,0.15080046,69148.0,69147.0,0.098348]
[1730693106314,0.10866228,69148.0,69147.0,0.098348]
[1730693107318,0.03631328,69148.0,69147.0,0.098348]
[1730693107512,0.07843538,69154.0,69147.0,0.62345339]
[1730693107813,0.00356942,69162.0,69154.0,0.09126539]
[1730693108011,0.00216941,69162.0,69161.0,0.16359939]
[1730693108615,0.03863036,69162.0,69161.0,0.16359939]
[1730693109308,0.03863036,69162.0,69161.0,0.21131198]
[1730693109808,0.00216941,69162.0,69161.0,0.072334]
[1730693110216,0.072335,69161.0,69158.0,0.11564353]
[1730693110511,0.07650241,69162.0,69161.0,0.001]
[1730693110905,0.61122241,69162.0,69161.0,0.001]
[1730693111912,0.072344,69153.0,69152.0,0.072344]
[1730693113113,0.072344,69153.0,69152.0,0.074344]
[1730693113816,0.072344,69153.0,69152.0,0.075344]
[1730693116415,1.04612198,69153.0,69140.0,0.04330653]
[1730693116719,1.04612198,69153.0,69138.0,0.05775979]
[1730693116720,0.072357,69139.0,69138.0,0.072357]
[1730693116913,0.173317,69139.0,69138.0,0.072357]
[1730693118023,0.173317,69139.0,69138.0,0.074357]
[1730693119220,0.173317,69139.0,69138.0,0.076357]
[1730693126325,0.20900797,69139.0,69138.0,0.076357]
[1730693126521,0.173317,69139.0,69138.0,0.004]
[1730693126721,0.20898514,69139.0,69138.0,0.004]
[1730693131920,0.072357,69139.0,69138.0,0.004]
[1730693132115,0.173357,69139.0,69138.0,0.004]
[1730693134233,0.072357,69139.0,69138.0,0.004]
[1730693134429,0.173357,69139.0,69138.0,0.076358]
[1730693136436,0.072357,69139.0,69138.0,0.076358]
[1730693136636,0.173357,69139.0,69138.0,0.076358]
[1730693139031,0.072357,69139.0,69138.0,0.076358]
[1730693139339,0.173197,69139.0,69138.0,0.076358]
[1730693140027,0.20867388,69139.0,69138.0,0.076358]
[1730693141539,0.10783388,69139.0,69138.0,0.076358]
[1730693141730,0.20867388,69139.0,69138.0,0.076358]
[1730693144633,0.173197,69139.0,69138.0,0.076358]
[1730693146839,0.173197,69139.0,69138.0,0.004]
[1730693146840,0.69836431,69139.0,69138.0,0.004]
[1730693147144,0.607117,69139.0,69138.0,0.004]
[1730693147343,0.69836431,69139.0,69138.0,0.004]
[1730693148038,0.173197,69139.0,69138.0,0.004]
[1730693149440,0.21141589,69139.0,69138.0,0.004]
[1730693149735,0.31225589,69139.0,69138.0,0.004]
[1730693153047,0.74617589,69139.0,69138.0,0.004]
[1730693153239,1.13957589,69139.0,69138.0,0.004]
[1730693153638,1.13957589,69139.0,69138.0,0.04739415]
[1730693154237,1.10697589,69139.0,69138.0,0.04739415]
[1730693154535,1.10697589,69139.0,69138.0,0.04738903]
[1730693154938,1.10697589,69139.0,69138.0,0.004]
[1730693155133,1.10697589,69139.0,69138.0,0.04738903]
[1730693155643,1.22848312,69139.0,69138.0,0.004]
[1730693156846,0.79456312,69139.0,69138.0,0.004]
[1730693158550,0.69372312,69139.0,69138.0,0.004]
[1730693158849,0.6093838,69139.0,69138.0,0.076358]
[1730693159335,0.56888139,69139.0,69138.0,0.076358]
[1730693159645,0.50902151,69139.0,69138.0,0.076358]
[1730693160157,0.60986151,69139.0,69138.0,0.076358]
[1730693160539,0.60986151,69139.0,69138.0,0.081358]
[1730693160740,0.60986151,69139.0,69138.0,0.090358]
[1730693161143,0.60986151,69139.0,69138.0,0.093358]
[1730693161346,0.60986151,69139.0,69138.0,0.084358]
[1730693161649,0.60986151,69139.0,69138.0,0.095358]
[1730693161848,0.56888139,69139.0,69138.0,0.095358]
[1730693162056,0.60984052,69139.0,69138.0,0.095358]
[1730693162448,0.61024129,69139.0,69138.0,0.095358]
[1730693162653,0.433157,69139.0,69138.0,0.095358]
[1730693162846,0.533997,69139.0,69138.0,0.095358]
[1730693163453,0.533997,69139.0,69138.0,0.094358]
[1730693165150,0.67305589,69139.0,69138.0,0.022]
[1730693167163,0.57221589,69139.0,69138.0,0.022]
[1730693167461,0.67305589,69139.0,69138.0,0.022]
[1730693168968,0.67293589,69139.0,69138.0,0.022]
[1730693169170,0.67293589,69139.0,69138.0,0.06537059]
[1730693170657,0.74901621,69139.0,69138.0,0.022]
[1730693174264,0.50923732,69139.0,69138.0,0.022]
[1730693174465,0.60995732,69139.0,69138.0,0.094358]
[1730693174675,0.43688032,69139.0,69138.0,0.094358]
[1730693175074,0.39600531,69139.0,69138.0,0.094358]
[1730693177679,0.3608,69139.0,69138.0,0.15222914]
[1730693181284,0.433157,69139.0,69138.0,0.15222914]
[1730693184580,0.3608,69139.0,69138.0,0.094358]
[1730693186482,0.3608,69139.0,69138.0,0.15220426]
[1730693187089,0.3608,69139.0,69138.0,0.094358]
[1730693187587,0.3608,69139.0,69138.0,0.15220426]
[1730693188574,0.13905889,69150.0,69138.0,0.15220426]
[1730693188575,0.3608,69151.0,69138.0,0.455158]
[1730693188776,0.3608,69151.0,69150.0,0.072346]
[1730693188982,0.173062,69154.0,69148.0,0.18245064]
[1730693189183,0.173062,69154.0,69152.0,0.072344]
[1730693189590,0.173062,69154.0,69152.0,0.104544]
[1730693189890,0.072342,69154.0,69152.0,0.104544]
[1730693190393,0.07451317,69153.0,69152.0,0.104544]
[1730693190780,0.07551317,69153.0,69152.0,0.105544]
[1730693191989,0.07651317,69153.0,69152.0,0.106544]
[1730693192593,0.00417017,69153.0,69152.0,0.106544]
[1730693193494,0.05239877,69153.0,69152.0,0.106544]
[1730693193794,0.13123151,69153.0,69152.0,0.106544]
[1730693195193,0.20357451,69153.0,69152.0,0.106544]
[1730693195587,0.20352318,69153.0,69152.0,0.106544]
[1730693196383,0.13118018,69153.0,69152.0,0.106544]
[1730693199587,0.08297106,69153.0,69152.0,0.106544]
[1730693199788,0.04063439,69153.0,69152.0,0.106544]
[1730693199989,0.00417017,69153.0,69152.0,0.106544]
[1730693200387,0.11994766,69153.0,69152.0,0.106544]
[1730693200899,0.04079648,69153.0,69152.0,0.106544]
[1730693201609,0.00417017,69153.0,69152.0,0.106544]
[1730693206001,0.00417017,69153.0,69152.0,0.540384]
[1730693206198,0.002,69153.0,69152.0,0.540384]
[1730693212905,0.002,69153.0,69152.0,0.106544]
[1730693213309,0.002,69153.0,69152.0,0.19777026]
[1730693215700,0.16556926,69153.0,69152.0,0.002]
[1730693215899,0.16556926,69153.0,69136.0,0.3608]
[1730693215900,0.072352,69144.0,69143.0,0.072353]
[1730693216408,0.20039857,69144.0,69143.0,0.072353]
[1730693216620,0.23089857,69144.0,69143.0,0.072353]
[1730693216997,0.37515368,69144.0,69143.0,0.072353]
[1730693217303,0.37515368,69144.0,69139.0,0.072357]
[1730693217304,0.072356,69140.0,69139.0,0.072357]
[1730693218200,0.19962484,69140.0,69139.0,0.072357]
[1730693219204,0.15204561,69140.0,69139.0,0.079357]
[1730693219402,0.15204561,69140.0,69139.0,0.085357]
[1730693220412,0.14993616,69140.0,69139.0,0.085357]
[1730693220606,0.07758016,69140.0,69139.0,0.085357]
[1730693223008,0.072355,69141.0,69139.0,0.10726593]
[1730693223215,0.072355,69141.0,69140.0,0.16662193]
[1730693223410,0.0318,69143.0,69140.0,0.09426593]
[1730693223611,0.3608,69145.0,69144.0,0.072352]
[1730693225713,0.3618,69145.0,69144.0,0.072352]
[1730693226706,0.3638,69145.0,69144.0,0.072352]
[1730693226911,0.003,69145.0,69144.0,0.14452203]
[1730693227210,0.003,69145.0,69144.0,0.30540072]
[1730693229718,0.003,69145.0,69144.0,0.16635161]
[1730693230017,0.003,69145.0,69144.0,0.072352]
[1730693230018,0.03933251,69145.0,69144.0,0.072352]
[1730693230421,0.11168351,69145.0,69144.0,0.072352]
[1730693230917,0.15359193,69145.0,69144.0,0.072352]
[1730693231220,0.08124093,69145.0,69144.0,0.072352]
[1730693231520,0.03933251,69145.0,69144.0,0.072352]
[1730693233007,0.03912208,69145.0,69144.0,0.072352]
[1730693233820,0.03912208,69145.0,69144.0,0.21140111]
[1730693234325,0.00216967,69158.0,69157.0,0.072339]
[1730693234932,0.08141375,69158.0,69157.0,0.072339]
[1730693235818,0.08341375,69158.0,69157.0,0.073339]
[1730693236225,0.08441375,69158.0,69157.0,0.074339]
[1730693237116,0.08448429,69158.0,69157.0,0.074339]
[1730693237724,0.15682129,69158.0,69157.0,0.074339]
[1730693238120,0.07750667,69158.0,69157.0,0.074339]
[1730693238831,0.07232,69176.0,69175.0,0.072318]
[1730693239039,0.07232,69176.0,69175.0,0.21136911]
[1730693239327,0.07232,69176.0,69175.0,0.07232]
[1730693239518,0.0327,69179.0,69178.0,0.072317]
[1730693240228,0.0968,69179.0,69178.0,0.072317]
[1730693240732,0.169116,69179.0,69178.0,0.072317]
[1730693241829,0.169116,69179.0,69178.0,0.073317]
[1730693242437,0.169116,69179.0,69178.0,0.074317]
[1730693243422,0.0968,69179.0,69178.0,0.074317]
[1730693245237,0.2932072,69179.0,69174.0,0.3608]
[1730693245431,0.13165497,69178.0,69177.0,0.21136711]
[1730693247129,0.12814365,69178.0,69177.0,0.21136711]
[1730693247935,0.12814365,69178.0,69177.0,0.21236711]
[1730693248231,0.12814365,69178.0,69177.0,0.073318]
[1730693248433,0.15960942,69178.0,69177.0,0.21336711]
[1730693248738,0.12914365,69178.0,69177.0,0.21336711]
[1730693250930,0.08050424,69178.0,69177.0,0.21336711]
[1730693251137,0.12791813,69178.0,69177.0,0.21336711]
[1730693251540,0.001,69178.0,69177.0,0.21336711]
[1730693251835,0.07844291,69178.0,69177.0,0.21336711]
[1730693253143,0.001,69178.0,69177.0,0.21336711]
[1730693255536,0.001,69178.0,69177.0,0.25724856]
[1730693259738,0.001,69178.0,69177.0,0.21336711]
[1730693260139,0.0369696,69178.0,69174.0,0.35440935]
[1730693260447,0.0369696,69178.0,69176.0,0.21136811]
[1730693260448,0.28389659,69177.0,69176.0,0.21136811]
[1730693260638,0.18153154,69177.0,69176.0,0.21136811]
[1730693260834,0.12528717,69177.0,69176.0,0.21136811]
[1730693261035,0.0359793,69177.0,69176.0,0.13904911]
[1730693261240,0.19416157,69177.0,69176.0,0.21136811]
[1730693261437,0.23593523,69177.0,69176.0,0.21136811]
[1730693261640,0.18156534,69177.0,69176.0,0.21136811]
[1730693261933,0.12532097,69177.0,69176.0,0.21136811]
[1730693262336,0.15892097,69177.0,69176.0,0.21236811]
[1730693262733,0.15892097,69177.0,69176.0,0.21336811]
[1730693265647,0.15892097,69177.0,69176.0,0.074319]
[1730693265834,0.15172179,69177.0,69176.0,0.074319]
[1730693266248,0.18382179,69177.0,69176.0,0.074319]
[1730693268154,0.0657,69177.0,69176.0,0.074319]
[1730693273451,0.0657,69177.0,69176.0,0.16551678]
[1730693278054,0.22921578,69177.0,69176.0,0.074319]
[1730693278258,0.17186556,69177.0,69176.0,0.074319]
[1730693280447,0.17185743,69177.0,69176.0,0.074319]
[1730693283159,0.17185743,69177.0,69174.0,0.40488762]
[1730693283160,0.30832583,69177.0,69174.0,0.40488762]
[1730693283346,0.24262683,69176.0,69175.0,0.07232]
[1730693284061,0.07232,69175.0,69174.0,0.31292984]
[1730693284355,0.24262783,69175.0,69174.0,0.31392984]
[1730693284755,0.24262783,69175.0,69174.0,0.31492984]
[1730693285150,0.24462783,69175.0,69174.0,0.31492984]
[1730693285355,0.24462783,69175.0,69174.0,0.31392984]
[1730693285555,0.24462783,69175.0,69174.0,0.31492984]
[1730693288553,0.24201907,69175.0,69174.0,0.31492984]
[1730693290258,0.07432,69175.0,69174.0,0.31492984]
[1730693292567,0.11668254,69175.0,69174.0,0.31492984]
[1730693297065,0.11668254,69175.0,69174.0,0.38725084]
[1730693297458,0.11668254,69175.0,69174.0,0.074321]
[1730693298255,0.14928682,69175.0,69174.0,0.074321]
[1730693299757,0.14928682,69175.0,69174.0,0.002]
[1730693300370,0.18716688,69175.0,69174.0,0.002]
[1730693300566,0.18716688,69175.0,69166.0,0.433129]
[1730693300567,0.072328,69167.0,69166.0,0.433129]
[1730693300767,0.10479928,69167.0,69166.0,0.433129]
[1730693301364,0.03247128,69167.0,69166.0,0.433129]
[1730693301565,0.10032,69173.0,69166.0,0.3608]
[1730693301769,0.10494492,69172.0,69171.0,0.16352078]
[1730693303467,0.17264,69176.0,69175.0,0.07232]
[1730693303777,0.07232,69176.0,69175.0,0.07232]
[1730693304573,0.07532,69176.0,69175.0,0.07332]
[1730693305272,0.194362,69176.0,69175.0,0.07432]
[1730693305972,0.19436462,69176.0,69175.0,0.07432]
[1730693307468,0.19432744,69176.0,69175.0,0.07432]
[1730693312167,0.1943424,69176.0,69175.0,0.07432]
[1730693313268,0.1943424,69176.0,69174.0,0.07403659]
[1730693313269,0.07932,69176.0,69174.0,0.07403659]
[1730693313766,0.07932,69176.0,69175.0,0.07232]
[1730693314366,0.07532,69176.0,69175.0,0.07232]
[1730693314562,0.07832,69176.0,69175.0,0.07232]
[1730693315873,0.006,69176.0,69175.0,0.16351778]
[1730693316075,0.00216915,69180.0,69179.0,0.072316]
[1730693316270,0.072304,69191.0,69190.0,0.072304]
[1730693316471,0.072304,69191.0,69190.0,0.16350178]
[1730693317466,0.072304,69191.0,69190.0,0.16450178]
[1730693317467,0.077304,69191.0,69190.0,0.16450178]
[1730693318473,0.077304,69191.0,69190.0,0.16550178]
[1730693319971,0.005,69191.0,69190.0,0.16550178]
[1730693320477,0.03772438,69191.0,69190.0,0.16550178]
[1730693320679,0.14802192,69191.0,69190.0,0.16550178]
[1730693322277,0.11527395,69191.0,69190.0,0.16550178]
[1730693322470,0.14797801,69191.0,69190.0,0.16550178]
[1730693326287,0.005,69191.0,69190.0,0.16550178]
[1730693326475,0.07560389,69191.0,69190.0,0.16550178]
[1730693326673,0.27878351,69191.0,69190.0,0.09205182]
[1730693327478,0.12015984,69191.0,69190.0,0.09205182]
[1730693327876,0.12015984,69191.0,69190.0,0.16435582]
[1730693328484,0.005,69191.0,69190.0,0.16435582]
[1730693329977,0.005,69191.0,69190.0,0.20711237]
[1730693331482,0.005,69191.0,69190.0,0.29831015]
[1730693332987,0.1,69200.0,69190.0,0.29831015]
[1730693332988,0.1,69200.0,69199.0,0.072295]
[1730693333182,0.1,69200.0,69199.0,0.16349278]
[1730693334890,0.26549178,69200.0,69199.0,0.073295]
[1730693335189,0.26549178,69200.0,69199.0,0.002]
[1730693335386,0.35977642,69200.0,69190.0,0.09119778]
[1730693335590,0.0723,69195.0,69194.0,0.0723]
[1730693335777,0.07033246,69195.0,69187.0,0.09119778]
[1730693335978,0.072304,69191.0,69190.0,0.072303]
[1730693336177,0.072304,69191.0,69190.0,0.16350078]
[1730693336178,0.18702038,69191.0,69190.0,0.16350078]
[1730693336373,0.23888264,69191.0,69190.0,0.16350078]
[1730693336592,0.23888264,69191.0,69190.0,0.16450078]
[1730693336791,0.23888264,69191.0,69190.0,0.04873188]
[1730693337781,0.33008042,69191.0,69190.0,0.001]
[1730693338088,0.33008681,69191.0,69190.0,0.002]
[1730693338290,0.33108681,69191.0,69190.0,0.002]
[1730693338689,0.36238681,69191.0,69190.0,0.002]
[1730693338886,0.36538681,69191.0,69190.0,0.002]
[1730693339391,0.40949302,69191.0,69190.0,0.002]
[1730693339688,0.072308,69186.0,69185.0,0.00216788]
[1730693339881,0.27822216,69186.0,69185.0,0.00216788]
[1730693340081,0.33009081,69186.0,69185.0,0.00216788]
[1730693340281,0.16658503,69186.0,69183.0,0.09119778]
[1730693340482,0.09119778,69190.0,69183.0,0.09119778]
[1730693340483,0.072311,69184.0,69183.0,0.16350778]
[1730693340686,0.23889603,69184.0,69183.0,0.16350778]
[1730693342183,0.24289603,69184.0,69183.0,0.16450778]
[1730693342485,0.24489603,69184.0,69183.0,0.16550778]
[1730693342987,0.17258503,69184.0,69183.0,0.16550778]
[1730693343191,0.23481316,69184.0,69183.0,0.16550778]
[1730693343393,0.006,69184.0,69183.0,0.25394145]
[1730693343691,0.006,69184.0,69183.0,0.19620778]
[1730693343891,0.006,69184.0,69183.0,0.62984778]
[1730693344789,0.006,69184.0,69183.0,0.70201487]
[1730693344983,0.006,69184.0,69183.0,0.80060583]
[1730693345494,0.006,69184.0,69183.0,0.77617451]
[1730693346191,0.006,69184.0,69183.0,0.34253451]
[1730693347786,0.006,69184.0,69183.0,0.77617451]
[1730693350490,0.006,69184.0,69183.0,0.67758355]
[1730693350886,0.07236998,69184.0,69183.0,0.67758355]
[1730693351800,0.07236998,69184.0,69183.0,0.8165171]
[1730693352098,0.07236998,69184.0,69183.0,0.67758355]
[1730693352993,0.07236998,69184.0,69183.0,0.97758355]
[1730693353589,0.07236998,69184.0,69183.0,1.1165171]
[1730693353894,0.14408768,69196.0,69195.0,0.072299]
[1730693354091,0.14408768,69196.0,69195.0,0.21123255]
[1730693355196,0.14708768,69196.0,69195.0,0.21223255]
[1730693355390,0.19147071,69196.0,69195.0,0.21223255]
[1730693355599,0.04938303,69196.0,69195.0,0.21323255]
[1730693355886,0.19347071,69196.0,69195.0,0.21323255]
[1730693356081,0.19358679,69196.0,69195.0,0.21323255]
[1730693356294,0.04938303,69196.0,69195.0,0.21323255]
[1730693356796,0.04938303,69196.0,69195.0,0.074299]
[1730693357188,0.12168103,69196.0,69195.0,0.074299]
[1730693357396,0.12168103,69196.0,69195.0,0.002]
[1730693357593,0.072302,69193.0,69191.0,0.072303]
[1730693357795,0.072305,69189.0,69188.0,0.3608]
[1730693358100,0.11668803,69189.0,69188.0,0.3608]
[1730693358299,0.26091451,69189.0,69188.0,0.3608]
[1730693358602,0.104305,69189.0,69188.0,0.3608]
[1730693358993,0.104305,69189.0,69188.0,0.072306]
[1730693359201,0.104305,69189.0,69188.0,0.11563312]
[1730693359498,0.104305,69189.0,69188.0,0.11663119]
[1730693359895,0.104305,69189.0,69188.0,0.074306]
[1730693360499,0.104305,69189.0,69188.0,0.11762954]
[1730693360692,0.104305,69189.0,69188.0,0.074306]
[1730693363896,0.032,69189.0,69188.0,0.074306]
[1730693364297,0.104305,69189.0,69188.0,0.074306]
[1730693365492,0.104305,69189.0,69188.0,0.002]
[1730693365696,0.12318288,69189.0,69188.0,0.04333699]
[1730693365906,0.072308,69187.0,69186.0,0.072308]
[1730693366605,0.072308,69187.0,69186.0,0.11564499]
[1730693368007,0.074308,69187.0,69186.0,0.11664499]
[1730693368711,0.076308,69187.0,69186.0,0.11764499]
[1730693369401,0.004,69187.0,69186.0,0.11764499]
[1730693370094,0.004,69187.0,69186.0,0.074308]
[1730693373605,0.06926902,69187.0,69186.0,0.074308]
[1730693380712,0.004,69187.0,69186.0,0.074308]
[1730693381809,0.076307,69187.0,69186.0,0.074308]
[1730693382810,0.004,69187.0,69186.0,0.074308]
[1730693384215,0.004,69187.0,69186.0,0.13208943]
[1730693384616,0.004,69187.0,69186.0,0.074308]
[1730693385218,0.004,69187.0,69186.0,0.16549088]
[1730693385526,0.004,69187.0,69186.0,0.3370473]
[1730693386123,0.004,69187.0,69186.0,0.26482051]
[1730693387218,0.004,69187.0,69186.0,0.17363763]
[1730693388517,0.0331,69198.0,69186.0,0.74256405]
[1730693388721,0.0331,69198.0,69197.0,0.072297]
[1730693388922,0.0331,69198.0,69197.0,0.13011435]
[1730693389221,0.0331,69198.0,69197.0,0.072297]
[1730693389639,0.12428288,69198.0,69195.0,0.05781735]
[1730693389930,0.072299,69195.0,69194.0,0.05781735]
[1730693390431,0.072299,69195.0,69193.0,0.43386]
[1730693390432,0.072299,69195.0,69193.0,0.49167735]
[1730693390736,0.072299,69195.0,69194.0,0.0723]
[1730693390930,0.072299,69195.0,69194.0,0.13011735]
[1730693392219,0.072299,69195.0,69194.0,0.13111735]
[1730693392421,0.072299,69195.0,69194.0,0.0743]
[1730693393525,0.11607086,69195.0,69194.0,0.0743]
[1730693393939,0.072299,69195.0,69194.0,0.0743]
[1730693395629,0.1822366,69195.0,69194.0,0.0743]
[1730693397431,0.18216685,69195.0,69194.0,0.0743]
[1730693397833,0.27334973,69195.0,69194.0,0.002]
[1730693398232,0.32521469,69195.0,69194.0,0.00118924]
[1730693400044,0.23403181,69195.0,69194.0,0.07348924]
[1730693400429,0.18216685,69195.0,69194.0,0.07348924]
[1730693401037,0.18217466,69195.0,69194.0,0.07348924]
[1730693403543,0.19179027,69198.0,69194.0,0.00118924]
[1730693403744,0.105396,69198.0,69197.0,0.16347988]
[1730693404638,0.105396,69198.0,69197.0,0.072297]
[1730693405547,0.106396,69198.0,69197.0,0.072297]
[1730693406041,0.001,69198.0,69197.0,0.22229723]
[1730693406230,0.1,69200.0,69199.0,0.072295]
[1730693406636,0.1,69200.0,69199.0,0.11563053]
[1730693407037,0.172294,69200.0,69199.0,0.11563053]
[1730693408444,0.172294,69200.0,69199.0,0.11663053]
[1730693408445,0.173294,69200.0,69199.0,0.11663053]
[1730693408640,0.173294,69200.0,69199.0,0.11763053]
[1730693410744,0.28339371,69200.0,69199.0,0.074295]
[1730693410938,0.33525516,69200.0,69199.0,0.074295]
[1730693411141,0.4421926,69200.0,69199.0,0.074295]
[1730693411444,0.33525516,69200.0,69199.0,0.074295]
[1730693413738,0.44223966,69200.0,69199.0,0.074295]
[1730693413951,0.49410111,69200.0,69199.0,0.074295]
[1730693414550,0.33525516,69200.0,69199.0,0.074295]
[1730693414848,0.33520205,69200.0,69199.0,0.074295]
[1730693415073,0.4422135,69200.0,69199.0,0.074295]
[1730693415238,0.2110466,69200.0,69199.0,0.074295]
[1730693416045,0.16666421,69200.0,69199.0,0.074295]
[1730693418749,0.101,69200.0,69199.0,0.074295]
[1730693423255,0.173294,69200.0,69199.0,0.074295]
[1730693425761,0.28325355,69200.0,69199.0,0.074295]
[1730693428668,0.28325355,69200.0,69199.0,0.002]
[1730693428869,0.072307,69189.0,69184.0,0.0303]
[1730693429074,0.072295,69199.0,69184.0,0.07231]
[1730693429075,0.16349288,69185.0,69184.0,0.07231]
[1730693429268,0.27308685,69185.0,69184.0,0.07231]
[1730693429571,0.18190397,69185.0,69184.0,0.07231]
[1730693430271,0.3262545,69185.0,69184.0,0.07231]
[1730693430470,0.18190397,69185.0,69184.0,0.07231]
[1730693430866,0.18190397,69185.0,69184.0,0.07331]
[1730693431067,0.18290397,69185.0,69184.0,0.07331]
[1730693431969,0.18390397,69185.0,69184.0,0.07231]
[1730693433674,0.07431,69185.0,69184.0,0.07231]